bitfinex-derivatives/quotes_ETHF0:USTF0_20250909
["timestamp","ask_amount","ask_price","bid_price","bid_amount"]
[1757406762016,0.1229,4364.5,4364.3,3.5034]
[1757406762312,1.06208032,4364.4,4364.3,3.9089]
[1757406762710,1.26838032,4364.4,4364.3,3.4046]
[1757406763117,1.26838032,4364.4,4364.3,3.6386]
[1757406763312,1.26838032,4364.4,4364.3,3.8473]
[1757406766120,1.26838032,4364.4,4364.3,3.6386]
[1757406766615,1.26838032,4364.4,4364.3,3.4046]
[1757406766818,1.26838032,4364.4,4364.3,3.6386]
[1757406767413,1.26838032,4364.4,4364.3,3.8473]
[1757406768826,1.26838032,4364.4,4364.3,4.143]
[1757406769024,0.85838032,4364.4,4364.3,4.143]
[1757406771129,0.3051,4364.4,4364.3,4.143]
[1757406771331,0.7131,4364.4,4364.3,3.909]
[1757406771628,0.7131,4364.4,4364.3,4.143]
[1757406772029,0.5089,4364.4,4364.3,4.143]
[1757406776932,0.5089,4364.4,4364.3,3.909]
[1757406777228,0.5089,4364.4,4364.3,4.143]
[1757406777638,1.26560782,4364.4,4364.3,3.8727]
[1757406777817,1.26560782,4364.4,4364.3,4.1684]
[1757406778433,1.06140782,4364.4,4364.3,4.1684]
[1757406780730,0.3242,4364.9,4364.3,7.96663]
[1757406780927,3.2078,4365.7,4365.3,0.7266]
[1757406781125,3.2078,4365.7,4365.2,0.41232]
[1757406781126,0.3267,4366.0,4365.9,0.4309]
[1757406781333,0.5309,4366.0,4365.9,0.9606]
[1757406781832,0.8551,4366.0,4365.9,0.9606]
[1757406782031,0.8551,4366.0,4365.9,0.6649]
[1757406784038,0.8551,4366.0,4365.9,0.9606]
[1757406784542,0.3242,4366.4,4366.3,0.7266]
[1757406784835,0.3242,4366.4,4366.3,0.9606]
[1757406785538,0.528,4366.4,4366.3,0.9606]
[1757406787830,3.532,4366.7,4366.6,0.4309]
[1757406788027,3.532,4366.7,4366.6,0.9606]
[1757406788229,3.7358,4366.7,4366.6,0.9606]
[1757406788835,0.528,4366.7,4366.6,0.9606]
[1757406792835,1.07684883,4366.7,4366.6,0.9606]
[1757406794034,0.528,4366.7,4366.6,0.9606]
[1757406794233,0.7322,4366.7,4366.6,0.9606]
[1757406794639,1.28082705,4366.7,4366.6,0.9606]
[1757406794939,1.28082705,4366.7,4366.6,0.6649]
[1757406795347,0.7322,4366.7,4366.6,0.6649]
[1757406796234,0.7322,4366.7,4366.6,0.7266]
[1757406796435,0.7322,4366.7,4366.6,0.9596]
[1757406798046,0.3242,4366.7,4366.6,0.9596]
[1757406798340,0.5315,4366.7,4366.6,0.9596]
[1757406800032,0.3242,4366.7,4366.6,0.9596]
[1757406800342,0.8529,4367.5,4367.4,0.7223]
[1757406800542,1.40139541,4367.5,4367.4,0.9553]
[1757406801040,1.40139541,4367.5,4367.4,0.66]
[1757406801839,1.40139541,4367.5,4367.4,0.4475]
[1757406805752,1.40139541,4367.5,4367.4,0.233]
[1757406807844,1.40139541,4367.5,4367.4,0.4475]
[1757406808046,0.307,4367.9,4367.8,0.427]
[1757406808350,0.5143,4367.9,4367.8,0.9553]
[1757406809936,0.307,4367.9,4367.8,0.9553]
[1757406810948,0.307,4367.9,4367.8,1.36737]
[1757406811551,0.307,4367.9,4367.8,0.9553]
[1757406812240,0.307,4368.4,4368.1,0.41204]
[1757406812437,0.7298,4368.4,4368.3,0.427]
[1757406813043,0.5143,4368.4,4368.3,0.7223]
[1757406814252,0.5143,4368.4,4368.3,0.90331508]
[1757406814552,0.5143,4368.4,4368.3,0.7223]
[1757406815637,0.7298,4368.4,4368.3,0.7223]
[1757406819052,0.7298,4368.4,4368.3,0.9553]
[1757406820053,1.2897017,4368.4,4368.3,0.9553]
[1757406821057,1.2897017,4368.4,4368.3,0.233]
[1757406821749,1.2897017,4368.4,4368.2,3.2078]
[1757406821750,0.7298,4368.3,4368.2,3.2078]
[1757406821951,1.2897017,4368.3,4368.2,0.233]
[1757406822752,0.7298,4367.8,4367.0,3.5033]
[1757406822959,0.5143,4367.2,4367.1,0.9555]
[1757406823257,1.0742017,4367.2,4367.1,0.9555]
[1757406824860,1.2897017,4367.2,4367.1,0.427]
[1757406825359,1.2897017,4367.2,4367.1,0.66]
[1757406825555,1.0742017,4367.2,4367.1,0.9555]
[1757406826448,1.0742017,4367.2,4367.1,0.7225]
[1757406826653,1.0742017,4367.2,4367.1,0.9555]
[1757406826952,1.0742017,4367.2,4367.1,0.89388469]
[1757406827153,1.2897017,4367.2,4367.1,0.46688469]
[1757406827358,0.6999,4366.6,4366.5,3.4134]
[1757406827554,1.2598017,4366.6,4366.5,3.6464]
[1757406830765,1.2598017,4366.6,4366.5,3.4408]
[1757406831061,0.6999,4365.5,4365.4,3.908]
[1757406831268,0.6999,4365.5,4365.4,4.141]
[1757406831556,0.8208,4365.5,4365.4,3.6464]
[1757406832358,0.8208,4365.5,4365.4,3.4408]
[1757406832567,1.38087275,4365.5,4365.4,3.4408]
[1757406832958,1.38087275,4365.5,4365.4,3.2078]
[1757406833370,1.38087275,4365.5,4365.4,3.4408]
[1757406834266,0.8208,4365.5,4365.4,3.4408]
[1757406835967,4.8208,4365.5,4365.4,3.4408]
[1757406838670,4.8208,4365.5,4365.4,3.2078]
[1757406844472,0.6999,4364.8,4364.7,3.7117]
[1757406844677,0.6999,4364.8,4364.7,3.9447]
[1757406845078,0.2958,4364.7,4364.1,0.2983]
[1757406845279,0.1209,4365.0,4364.0,3.2791]
[1757406845280,0.4041,4364.3,4364.2,0.9332]
[1757406845481,0.6999,4364.3,4364.2,0.9332]
[1757406846685,0.6999,4364.3,4363.8,0.2983]
[1757406846686,0.4041,4364.3,4363.8,0.2983]
[1757406846983,0.4041,4364.3,4363.4,3.38896244]
[1757406846984,0.6999,4364.0,4363.9,0.9332]
[1757406849180,0.6999,4364.0,4363.9,0.7002]
[1757406849381,0.6999,4364.0,4363.9,0.9332]
[1757406855182,1.25854672,4364.0,4363.9,0.9332]
[1757406856186,1.37944672,4364.0,4363.6,0.2983]
[1757406856391,0.7309,4363.7,4363.6,0.2983]
[1757406856687,1.28954672,4363.7,4363.6,0.7459]
[1757406856887,1.28954672,4363.7,4363.6,0.9493]
[1757406860390,1.40384672,4363.7,4363.6,0.9493]
[1757406862390,1.40384672,4363.7,4362.9,3.79931168]
[1757406862391,0.5329,4363.0,4362.9,0.5326]
[1757406862591,1.41214672,4363.0,4362.2,0.318]
[1757406862793,0.7309,4362.3,4362.2,0.736]
[1757406862997,1.28954672,4362.3,4362.2,0.736]
[1757406864284,0.55864672,4362.3,4362.2,0.736]
[1757406864488,0.55864672,4362.5,4362.2,0.736]
[1757406864690,0.55864672,4362.5,4362.4,0.418]
[1757406864896,0.55864672,4362.5,4362.4,0.736]
[1757406865597,0.55864672,4362.5,4362.4,8.17303]
[1757406865792,0.55864672,4362.5,4362.4,7.85503]
[1757406866096,0.7309,4363.5,4363.4,0.736]
[1757406866296,1.41360739,4363.5,4363.4,0.651]
[1757406866497,1.41360739,4363.5,4363.4,0.3746]
[1757406866692,1.41360739,4363.5,4363.4,0.4476]
[1757406867093,1.41360739,4363.5,4362.8,0.318]
[1757406867293,0.7309,4362.9,4362.8,0.736]
[1757406867489,1.29100739,4362.9,4362.8,0.969]
[1757406867795,0.75630739,4362.9,4362.8,0.969]
[1757406868191,0.56010739,4362.9,4362.8,0.969]
[1757406868391,0.56028673,4363.1,4363.0,0.5432]
[1757406868694,0.56028673,4363.1,4363.0,0.8612]
[1757406869900,0.75648673,4363.1,4363.0,0.8612]
[1757406870698,1.07708673,4363.1,4363.0,0.8612]
[1757406872303,0.75648673,4363.1,4363.0,0.8612]
[1757406872495,0.56028673,4363.1,4363.0,0.8612]
[1757406874391,0.56028673,4363.1,4363.0,4.8612]
[1757406875192,0.55614577,4363.1,4363.0,4.8612]
[1757406876593,0.55614577,4363.1,4363.0,5.0942]
[1757406877296,0.3206,4363.6,4363.0,4.7762]
[1757406877601,1.07101092,4363.5,4363.4,3.9438]
[1757406877900,1.07101092,4363.5,4363.4,4.1768]
[1757406878602,0.55421092,4363.5,4363.4,4.1768]
[1757406879698,0.66851092,4363.5,4363.4,4.1768]
[1757406883200,0.1143,4363.5,4363.4,4.1768]
[1757406884603,0.6311,4363.5,4363.4,4.1768]
[1757406884805,1.3995026,4363.5,4363.4,4.1768]
[1757406885305,1.52212376,4363.5,4363.4,3.6258]
[1757406885502,1.52212376,4363.5,4363.4,0.4476]
[1757406886309,1.52212376,4363.5,4363.4,0.7656]
[1757406889014,1.52212376,4363.5,4363.4,0.9712]
[1757406889506,1.39952376,4363.5,4363.4,0.9712]
[1757406889710,1.39952376,4363.5,4363.4,4.179]
[1757406889912,0.8452,4363.5,4363.4,4.179]
[1757406893215,1.39962222,4363.5,4363.4,4.179]
[1757406905425,0.66872222,4363.5,4363.4,4.179]
[1757406907025,0.3009,4364.6,4364.5,0.1183]
[1757406907227,0.3009,4364.6,4364.5,1.0721]
[1757406907524,0.3009,4364.9,4364.5,0.7664]
[1757406907723,0.8383,4365.0,4364.9,0.7208]
[1757406907918,0.8383,4365.0,4364.9,0.9538]
[1757406908827,0.7157,4365.0,4364.9,0.9538]
[1757406909124,0.3009,4365.4,4365.0,0.1183]
[1757406909324,0.7157,4365.4,4365.3,0.7208]
[1757406909523,0.7157,4365.4,4365.3,0.9538]
[1757406909921,0.5167,4365.4,4365.3,0.9538]
[1757406910225,0.7157,4365.6,4365.5,0.7208]
[1757406910422,0.7157,4365.6,4365.5,0.9538]
[1757406914432,0.7157,4365.6,4365.5,0.4425]
[1757406915325,0.7157,4364.9,4364.8,0.5152]
[1757406915623,0.7157,4364.9,4364.8,0.9538]
[1757406921126,0.5313,4364.5,4364.4,0.3008]
[1757406921323,0.296,4364.3,4364.2,3.5086]
[1757406921630,0.6993,4364.3,4364.2,3.9417]
[1757406921826,0.6993,4364.3,4364.2,3.4408]
[1757406922028,1.24706275,4364.3,4364.2,3.4408]
[1757406927934,1.24706275,4364.3,4364.2,3.2078]
[1757406928234,1.24706275,4364.3,4364.2,3.4408]
[1757406930437,1.24706275,4364.3,4364.2,3.9417]
[1757406930738,1.24706275,4364.3,4364.2,3.7087]
[1757406930940,1.24706275,4364.3,4364.2,3.9417]
[1757406931336,1.24706275,4364.3,4364.2,3.2078]
[1757406931643,0.6993,4363.7,4363.1,0.3008]
[1757406931943,0.6993,4363.2,4363.1,0.7055]
[1757406932630,0.6993,4363.2,4363.1,0.9385]
[1757406934640,0.4938,4363.2,4363.1,0.9385]
[1757406935743,0.6993,4363.2,4363.1,0.2001]
[1757406935942,0.6993,4362.9,4362.8,0.5009]
[1757406936244,0.6993,4362.9,4362.8,0.9385]
[1757406937844,3.2078,4363.4,4363.0,0.1192]
[1757406938042,3.2078,4363.4,4363.3,0.7055]
[1757406938243,3.2078,4363.4,4363.3,0.9385]
[1757406940647,0.296,4363.7,4363.3,0.9385]
[1757406940844,3.6111,4363.9,4363.8,0.4047]
[1757406941146,1.24676109,4363.9,4363.8,0.7055]
[1757406941345,1.24682162,4363.9,4363.8,0.7055]
[1757406942442,0.54752162,4363.9,4363.8,0.9385]
[1757406942643,3.5688,4364.5,4363.8,0.6377]
[1757406942644,3.5038,4364.5,4363.8,0.6377]
[1757406942947,1.04138824,4364.4,4364.3,0.7055]
[1757406943139,1.04138824,4364.4,4364.3,0.9385]
[1757406946746,0.74538824,4364.4,4364.3,0.9385]
[1757406947252,0.54758824,4364.4,4364.3,0.9385]
[1757406947450,0.5344,4365.0,4364.9,0.4147]
[1757406947653,1.08266339,4365.0,4364.9,0.9572]
[1757406948348,1.28796339,4365.0,4364.9,0.9572]
[1757406948851,1.41726339,4365.0,4364.9,0.233]
[1757406949352,1.41726339,4365.0,4364.6,0.3095]
[1757406949551,0.7397,4364.8,4364.7,0.4406]
[1757406949847,1.28796339,4364.8,4364.7,0.7501]
[1757406950244,1.28796339,4364.8,4364.7,0.2076]
[1757406950445,1.28796339,4364.8,4364.7,0.233]
[1757406951350,1.28796339,4364.8,4364.7,0.4406]
[1757406951551,1.28796339,4364.8,4364.7,0.7501]
[1757406952951,1.28796339,4364.8,4364.7,0.4406]
[1757406954353,1.28796339,4364.8,4364.7,0.7501]
[1757406954554,1.28796339,4364.8,4364.7,0.9572]
[1757406955252,0.75896339,4364.8,4364.7,0.9572]
[1757406955656,1.08266339,4364.8,4364.7,0.9572]
[1757406956458,0.3237,4365.9,4365.2,0.3095]
[1757406956661,1.28800707,4365.8,4365.7,0.2076]
[1757406956860,1.28800707,4365.8,4365.5,0.3095]
[1757406957054,0.7397,4365.6,4365.5,0.3095]
[1757406957250,0.7397,4365.6,4365.5,0.7242]
[1757406957251,1.28800707,4365.6,4365.5,0.7242]
[1757406957456,1.28800707,4365.6,4365.5,0.8516]
[1757406961058,1.28800707,4365.6,4365.5,0.2076]
[1757406961362,0.7397,4365.3,4365.2,0.2076]
[1757406961554,0.7397,4365.3,4365.2,0.4406]
[1757406962678,0.1293,4365.5,4364.7,3.2078]
[1757406962679,0.869,4365.0,4364.7,3.2078]
[1757406962958,0.7397,4364.9,4364.8,0.4406]
[1757406963166,0.7397,4364.9,4364.8,0.9572]
[1757406965557,0.3237,4365.4,4364.8,0.9572]
[1757406965761,0.5344,4365.2,4365.1,0.4147]
[1757406965962,0.7397,4365.2,4365.1,0.7242]
[1757406967369,1.28778831,4365.2,4365.1,0.7242]
[1757406967769,1.28778831,4365.2,4365.1,0.2076]
[1757406967969,1.28778831,4365.2,4364.8,0.5425]
[1757406967970,0.416,4364.9,4364.8,0.5171]
[1757406968271,0.7397,4364.9,4364.8,0.7501]
[1757406968461,0.7397,4364.9,4364.8,0.5171]
[1757406968656,0.7397,4364.9,4364.8,0.9572]
[1757406970177,0.7397,4364.9,4364.8,0.4147]
[1757406970469,1.28851155,4364.9,4364.8,0.4406]
[1757406971565,1.28851155,4364.9,4364.8,0.7501]
[1757406972268,1.28851155,4364.9,4364.8,0.9572]
[1757406973775,1.28851155,4364.9,4364.8,0.7242]
[1757406973971,1.28851155,4364.9,4364.8,0.9572]
[1757406975472,2.0487476,4366.3,4364.8,0.9572]
[1757406975473,0.3237,4368.0,4365.3,3.2078]
[1757406975675,0.869,4368.0,4367.9,3.2078]
[1757406975976,0.869,4368.0,4367.9,3.4428]
[1757406976377,2.517086,4368.0,4367.9,3.2078]
[1757406976577,2.517086,4368.0,4367.9,3.77581191]
[1757406977079,2.517086,4368.0,4367.9,3.53981191]
[1757406977377,2.517086,4368.0,4367.9,3.77481191]
[1757406979483,2.517086,4368.0,4367.9,3.53981191]
[1757406979781,2.517086,4368.0,4367.9,3.77481191]
[1757406981172,2.517086,4368.0,4367.9,3.4428]
[1757406983377,0.8596,4367.5,4367.4,1.559714]
[1757406983576,0.1275,4366.5,4366.4,3.2078]
[1757406983782,0.8596,4366.5,4366.4,3.94112241]
[1757406983982,0.8596,4366.5,4366.4,3.70612241]
[1757406984282,0.8596,4366.5,4366.4,3.4428]
[1757406984979,0.3299,4366.0,4365.9,0.2006]
[1757406985183,0.5409,4366.0,4365.9,0.4956738]
[1757406985379,0.5409,4366.0,4365.9,0.7306738]
[1757406985574,0.8596,4366.0,4365.9,0.4356]
[1757406988586,0.8596,4366.0,4365.8,36.1998]
[1757406988785,0.3187,4365.9,4365.8,36.1998]
[1757406989084,0.3187,4365.9,4365.8,36.4348]
[1757406992287,0.3187,4365.9,4365.8,36.7374]
[1757406995189,0.3187,4365.9,4365.8,33.227]
[1757406996689,0.3187,4365.9,4365.3,3.2078]
[1757406996690,0.5409,4365.5,4365.4,0.2006]
[1757406996889,0.5409,4365.5,4365.4,0.4356]
[1757406996890,0.8596,4365.5,4365.4,0.4356]
[1757406999197,0.3187,4365.4,4365.3,3.2078]
[1757406999395,0.5297,4364.7,4364.6,3.9197]
[1757406999592,0.3187,4364.7,4364.6,4.45260234]
[1757406999893,0.6572,4365.0,4364.9,0.4093]
[1757407000099,0.6572,4365.0,4364.9,0.9469]
[1757407001093,0.6572,4365.0,4364.9,1.2447951]
[1757407002100,0.8596,4365.0,4364.9,0.9421951]
[1757407002291,0.8596,4365.0,4364.6,3.5104]
[1757407002292,0.8596,4365.0,4364.6,3.2078]
[1757407002497,0.5409,4365.0,4364.6,3.2078]
[1757407002696,0.7321,4364.8,4364.7,0.235]
[1757407002900,0.7321,4364.8,4364.7,0.4356]
[1757407003199,0.7321,4364.8,4364.7,0.6443]
[1757407003594,0.7321,4364.8,4364.7,1.24485836]
[1757407004393,0.7321,4364.8,4364.7,0.9469]
[1757407005702,0.7321,4364.8,4364.7,0.6443]
[1757407006000,0.4134,4364.8,4364.6,3.2078]
[1757407006203,0.7321,4364.7,4364.6,3.4084]
[1757407006399,0.7321,4364.7,4364.6,3.6424]
[1757407007604,0.7321,4364.7,4364.6,3.6146]
[1757407007805,0.7321,4364.7,4364.6,3.8486]
[1757407008304,0.7321,4364.7,4364.6,4.14678015]
[1757407009907,0.7321,4364.7,4364.6,4.46788015]
[1757407011810,0.4393,4365.0,4364.9,0.726]
[1757407012011,0.3118,4365.0,4364.9,0.96]
[1757407012211,0.5217,4365.0,4364.9,0.96]
[1757407012417,0.6499,4365.0,4364.9,1.25873576]
[1757407012611,0.8536,4365.0,4364.9,0.70363576]
[1757407012916,0.8536,4365.0,4364.9,0.93763576]
[1757407014110,0.8536,4365.0,4364.9,0.73143576]
[1757407014811,0.8536,4365.0,4364.9,0.4327]
[1757407015009,0.8536,4365.0,4364.9,0.73177059]
[1757407015716,0.8536,4365.0,4364.9,0.49777059]
[1757407016013,0.8536,4365.0,4364.9,0.73177059]
[1757407016415,0.8536,4365.0,4364.9,0.93797059]
[1757407016616,0.8536,4365.0,4364.9,1.25907059]
[1757407020220,0.8536,4365.0,4364.9,0.93797059]
[1757407020415,0.8536,4365.0,4364.9,1.25907059]
[1757407020616,0.3118,4365.4,4365.0,0.3211]
[1757407020817,3.5196,4365.5,4365.4,0.726]
[1757407021214,3.5196,4365.5,4365.0,0.61267953]
[1757407021215,3.9332,4365.5,4365.0,0.61267953]
[1757407021414,0.7254,4365.2,4365.1,0.28407522]
[1757407022618,0.4136,4364.9,4364.8,0.234]
[1757407022826,0.7254,4364.9,4364.8,0.71698997]
[1757407025326,0.7254,4364.9,4364.8,1.3296695]
[1757407025625,0.8398,4364.9,4364.8,1.3296695]
[1757407026017,0.8398,4364.9,4364.8,0.28428997]
[1757407026322,0.7254,4364.4,4364.3,0.61267953]
[1757407026520,0.7254,4364.4,4364.3,0.8974018]
[1757407026722,0.7254,4364.4,4364.3,0.28472227]
[1757407028025,0.7254,4364.1,4364.0,1.24981555]
[1757407028214,0.7254,4364.1,4364.0,0.4327]
[1757407028415,0.7254,4364.1,4364.0,1.24981555]
[1757407029325,0.7254,4364.1,4364.0,0.4327]
[1757407030922,0.7254,4364.1,4364.0,0.6389]
[1757407031123,0.5217,4364.1,4364.0,1.77711555]
[1757407034829,0.7254,4364.1,4364.0,1.77711555]
[1757407036519,0.7254,4364.1,4364.0,0.96]
[1757407041334,0.8399,4364.1,4364.0,0.96]
[1757407042333,0.4263,4364.1,4364.0,0.96]
[1757407042921,0.6217,4364.1,4364.0,0.96]
[1757407044228,0.8202,4364.1,4364.0,0.959]
[1757407044832,0.8202,4364.1,4364.0,0.6379]
[1757407045024,0.8202,4364.1,4364.0,0.4049]
[1757407045229,0.8202,4364.1,4364.0,0.6379]
[1757407046432,0.8202,4364.1,4364.0,0.9552]
[1757407048130,2.9985,4364.8,4364.0,0.46213999]
[1757407048334,0.1238,4365.5,4364.7,3.2078]
[1757407048638,0.3138,4365.9,4365.4,1.22567333]
[1757407048832,0.3138,4365.9,4365.8,3.2078]
[1757407049034,0.7077,4365.9,4365.8,3.4418]
[1757407049824,0.7077,4365.9,4365.8,3.2078]
[1757407050137,0.7077,4365.9,4365.8,3.4418]
[1757407050939,1.14576755,4365.9,4365.8,3.2078]
[1757407051528,1.14576755,4365.9,4365.8,3.4408]
[1757407052334,1.14576755,4365.9,4365.2,0.82138858]
[1757407052335,1.14576755,4365.9,4365.2,3.2078]
[1757407052642,0.3138,4365.3,4365.2,3.2078]
[1757407052840,0.7077,4365.3,4365.2,3.2078]
[1757407053040,1.14576755,4365.3,4365.2,3.4408]
[1757407053740,0.94726755,4365.3,4365.2,3.4408]
[1757407054446,0.75186755,4365.3,4365.2,3.4408]
[1757407055040,0.43806755,4365.3,4365.2,3.85312]
[1757407055640,0.94726755,4365.3,4365.2,3.4418]
[1757407056449,0.75186755,4365.3,4365.2,3.4418]
[1757407057946,0.75186755,4365.3,4365.2,3.72150628]
[1757407066159,0.94726755,4365.3,4365.2,3.48750628]
[1757407066356,1.14576755,4365.3,4365.2,3.48750628]
[1757407066554,1.14576755,4365.3,4365.2,3.4408]
[1757407067550,0.94726755,4365.3,4365.2,3.2078]
[1757407067744,0.94726755,4365.3,4365.2,3.4408]
[1757407068555,1.15426755,4365.3,4365.2,3.2078]
[1757407069055,0.7279,4364.8,4364.7,3.2078]
[1757407069355,0.7279,4364.8,4364.7,3.4408]
[1757407069749,0.7279,4364.8,4364.7,3.2078]
[1757407069949,1.16596755,4364.8,4364.7,3.2078]
[1757407070144,1.16596755,4364.8,4364.7,3.4408]
[1757407070750,1.16596755,4364.8,4364.7,3.2078]
[1757407070950,1.16596755,4364.8,4364.7,3.4408]
[1757407074057,1.16596755,4364.8,4364.7,0.233]
[1757407076360,1.16596755,4364.8,4364.7,0.51309402]
[1757407077961,1.16596755,4364.8,4364.7,0.28009402]
[1757407078162,1.16596755,4364.8,4364.7,0.51309402]
[1757407078365,1.16596755,4364.8,4364.7,0.28009402]
[1757407078562,1.16596755,4364.8,4364.7,0.51309402]
[1757407078762,1.16596755,4364.8,4364.7,0.233]
[1757407079266,0.7279,4364.3,4364.2,3.2078]
[1757407079462,0.7279,4364.3,4364.2,0.28026263]
[1757407079662,0.7279,4364.3,4364.2,0.51326263]
[1757407080058,1.16596755,4364.3,4364.2,0.51326263]
[1757407080458,1.16596755,4364.3,4364.2,0.233]
[1757407081265,0.3199,4363.9,4363.7,3.2078]
[1757407081466,0.5209,4363.9,4363.8,0.51324561]
[1757407081769,0.3199,4364.2,4363.8,0.51324561]
[1757407081967,0.4472,4364.0,4363.9,0.28024561]
[1757407082168,0.88526755,4364.0,4363.9,0.28024561]
[1757407082569,0.43806755,4364.0,4363.9,0.28024561]
[1757407083170,0.75796755,4364.0,4363.9,0.28024561]
[1757407086064,0.75796755,4364.0,4363.9,1.09965148]
[1757407086768,0.75796755,4364.0,4363.9,1.09942116]
[1757407088570,0.43806755,4364.0,4363.9,4.69245529]
[1757407089074,0.43806755,4364.0,4363.9,5.9215641]
[1757407089271,0.43806755,4364.0,4363.9,4.69245529]
[1757407089762,0.43806755,4364.0,4363.9,5.50915119]
[1757407091267,0.43806755,4364.0,4363.9,4.28001529]
[1757407093986,0.75796755,4364.0,4363.9,4.28001529]
[1757407094485,0.1273,4366.0,4364.9,0.4206]
[1757407094685,0.201,4365.5,4365.4,0.7312]
[1757407094886,0.201,4365.5,4365.4,2.06440027]
[1757407095278,0.201,4365.5,4365.4,1.24421529]
[1757407095476,0.201,4365.5,4365.4,2.06390212]
[1757407095681,0.201,4365.5,4365.4,1.24421529]
[1757407096186,0.201,4365.5,4365.4,2.06359282]
[1757407096686,0.5002,4365.5,4365.4,2.06359282]
[1757407098178,0.5002,4365.5,4365.4,1.24421529]
[1757407098383,0.5002,4365.5,4365.4,2.06359282]
[1757407098583,0.5002,4365.5,4365.4,2.24853861]
[1757407098783,0.5002,4365.5,4365.4,2.06359282]
[1757407099289,0.5002,4365.5,4365.4,1.24421529]
[1757407101184,0.8123,4365.5,4365.4,0.93361529]
[1757407101894,0.8123,4365.5,4365.4,0.51301529]
[1757407103094,0.8123,4365.5,4365.4,0.28001529]
[1757407103298,0.8123,4365.5,4365.4,0.51301529]
[1757407104202,0.2992,4365.4,4365.3,3.2078]
[1757407104389,0.2992,4365.3,4365.2,0.233]
[1757407104585,0.7078,4365.3,4365.2,0.233]
[1757407105588,0.4086,4365.3,4365.2,0.9451]
[1757407105993,0.7078,4365.3,4365.2,0.9451]
[1757407108497,0.7078,4365.3,4365.2,0.7484]
[1757407108999,0.7078,4365.3,4364.8,3.5262]
[1757407109201,0.7078,4365.3,4365.0,0.3184]
[1757407109388,0.7078,4365.3,4365.1,0.233]
[1757407109595,0.4086,4365.3,4365.1,0.5514]
[1757407109796,0.7078,4365.2,4365.1,0.7484]
[1757407111304,0.7078,4365.2,4365.1,0.5154]
[1757407111506,0.7078,4365.2,4365.1,0.7484]
[1757407112397,0.2992,4365.1,4364.9,0.3184]
[1757407112597,0.7078,4364.9,4364.8,3.5262]
[1757407112797,0.7078,4364.9,4364.8,3.9562]
[1757407113597,0.7078,4364.9,4364.8,4.1529]
[1757407116405,0.7078,4364.9,4364.8,3.9199]
[1757407116604,0.7078,4364.9,4364.8,3.9562]
[1757407117812,0.2992,4365.8,4364.8,3.8345]
[1757407118104,0.7078,4365.8,4365.7,0.7121]
[1757407118409,0.7078,4365.8,4365.7,0.9451]
[1757407124612,0.7078,4365.8,4365.7,0.7121]
[1757407124905,0.7078,4365.8,4365.7,0.9451]
[1757407125111,0.7078,4365.8,4365.7,0.7484]
[1757407127514,0.7078,4365.8,4365.7,0.9451]
[1757407131013,0.7078,4365.8,4365.7,0.7121]
[1757407131215,0.7078,4365.8,4365.7,0.9451]
[1757407139323,0.2133,4365.8,4365.7,0.9451]
[1757407139627,0.1144,4366.0,4365.9,0.7149]
[1757407139818,0.1144,4366.0,4365.9,0.9479]
[1757407140019,0.59539408,4366.0,4365.9,0.9479]
[1757407140326,1.10759408,4366.0,4365.9,0.9479]
[1757407141423,1.31749408,4366.0,4365.9,0.9479]
[1757407142027,1.31749408,4366.0,4365.9,0.7149]
[1757407142220,1.31749408,4366.0,4365.9,0.9479]
[1757407142523,1.20309408,4366.0,4365.9,0.9479]
[1757407144529,1.20309408,4366.0,4365.9,0.7149]
[1757407144731,1.33129408,4366.0,4365.9,0.7345]
[1757407145924,1.20309408,4366.0,4365.9,0.7345]
[1757407147032,1.02299408,4366.0,4365.9,0.233]
[1757407147234,1.33129408,4366.0,4365.9,0.233]
[1757407149033,1.20309408,4366.0,4365.9,0.9479]
[1757407150136,1.33129408,4366.0,4365.6,3.5075]
[1757407150322,0.7221,4365.8,4365.7,0.233]
[1757407150525,1.20309408,4365.8,4365.7,0.233]
[1757407150835,1.20309408,4365.8,4365.7,0.5327]
[1757407151039,0.7221,4365.7,4365.6,3.2078]
[1757407151235,0.1282,4366.0,4365.0,0.1293]
[1757407151236,0.7221,4365.1,4365.0,3.7093]
[1757407151535,1.20309408,4365.1,4365.0,3.9423]
[1757407151937,1.20309408,4365.1,4365.0,3.9227]
[1757407152137,1.20309408,4365.1,4365.0,4.1557]
[1757407153328,1.20309408,4365.1,4365.0,3.9227]
[1757407153635,1.20309408,4365.1,4365.0,4.1557]
[1757407154138,1.20309408,4365.1,4365.0,3.9227]
[1757407154337,1.20309408,4365.1,4365.0,4.1557]
[1757407156736,1.20309408,4365.1,4365.0,4.2788]
[1757407156930,0.48099408,4365.1,4365.0,4.2788]
[1757407157133,0.48099408,4365.4,4365.0,4.0452]
[1757407157436,1.93238259,4365.6,4365.5,0.8277]
[1757407157634,2.42961335,4365.6,4365.5,0.8277]
[1757407158032,2.42961335,4365.6,4365.5,0.7046]
[1757407159133,2.42961335,4365.6,4365.5,0.4973]
[1757407159735,0.3968,4365.1,4365.0,3.5291]
[1757407159938,0.6954,4365.1,4365.0,4.0612]
[1757407160135,1.19263076,4365.1,4365.0,4.2685]
[1757407162843,1.19263076,4365.1,4365.0,4.0355]
[1757407163049,1.19263076,4365.1,4365.0,4.2685]
[1757407166058,1.19263076,4365.1,4365.0,4.0355]
[1757407166257,1.19263076,4365.1,4365.0,4.2685]
[1757407166961,0.69503076,4365.1,4365.0,4.2685]
[1757407167451,0.49723076,4365.1,4365.0,4.2685]
[1757407168052,0.61163076,4365.1,4365.0,4.2685]
[1757407172863,0.6114341,4365.1,4365.0,4.2685]
[1757407183984,0.6114341,4365.1,4365.0,4.49759]
[1757407184777,0.6114341,4365.1,4365.0,4.2685]
[1757407185272,0.2986,4365.8,4365.0,3.9694]